[Event "Titled Tuesday Blitz August 08 Early 2023"]
[White "Ruge, Edison"]
[Black "FREDERICKtheMATE"]
[WhiteFideId "4401000"]
[WhiteElo "2274"]
[BlackElo "2447"]
[Result "0-1"]
[Round "8"]
[TimeControl "180+1"]
[Date "2023.08.08"]
[WhiteClock "0:00:00"]
[BlackClock "0:00:15"]
[Board "153"]

1. e4 {[%clk 0:03:00]}  c5 {[%clk 0:03:00]} 2. Nf3 {[%clk 0:03:00]}  Nc6 {[%clk 0:03:00]} 3. d3 {[%clk 0:03:01]}  g6 {[%clk 0:03:00]} 4. Nbd2 {[%clk 0:03:01]}  Bg7 {[%clk 0:03:01]} 5. g3 {[%clk 0:03:02]}  d6 {[%clk 0:03:01]} 6. Bg2 {[%clk 0:03:03]}  e6 {[%clk 0:03:01]} 7. h4 {[%clk 0:03:02]}  h6 {[%clk 0:03:01]} 8. h5 {[%clk 0:03:01]}  g5 {[%clk 0:03:00]} 9. O-O {[%clk 0:03:02]}  Nge7 {[%clk 0:03:00]} 10. Nh2 {[%clk 0:03:02]}  f5 {[%clk 0:02:59]} 11. c3 {[%clk 0:03:02]}  O-O {[%clk 0:02:58]} 12. f4 {[%clk 0:03:02]}  g4 {[%clk 0:02:58]} 13. Re1 {[%clk 0:02:54]}  Kh8 {[%clk 0:02:53]} 14. Nc4 {[%clk 0:02:53]}  Rb8 {[%clk 0:02:45]} 15. e5 {[%clk 0:02:49]}  d5 {[%clk 0:02:42]} 16. Nd6 {[%clk 0:02:42]}  Bd7 {[%clk 0:02:41]} 17. Be3 {[%clk 0:02:39]}  b6 {[%clk 0:02:40]} 18. Bf2 {[%clk 0:02:39]}  Nc8 {[%clk 0:02:37]} 19. Nxc8 {[%clk 0:02:28]}  Qxc8 {[%clk 0:02:37]} 20. c4 {[%clk 0:02:21]}  d4 {[%clk 0:02:30]} 21. a3 {[%clk 0:02:13]}  Qe8 {[%clk 0:02:27]} 22. Nxg4 {[%clk 0:02:11]}  fxg4 {[%clk 0:02:26]} 23. Qxg4 {[%clk 0:02:12]}  Rg8 {[%clk 0:02:19]} 24. Qh3 {[%clk 0:02:09]}  Ne7 {[%clk 0:02:12]} 25. Be4 {[%clk 0:02:09]}  Qf7 {[%clk 0:02:10]} 26. Kh2 {[%clk 0:02:03]}  Rbf8 {[%clk 0:02:07]} 27. Rg1 {[%clk 0:02:00]}  Be8 {[%clk 0:02:07]} 28. b4 {[%clk 0:01:31]}  Qxh5 {[%clk 0:01:52]} 29. Qxh5 {[%clk 0:01:26]}  Bxh5 {[%clk 0:01:53]} 30. bxc5 {[%clk 0:01:26]}  bxc5 {[%clk 0:01:53]} 31. Rab1 {[%clk 0:01:25]}  Rb8 {[%clk 0:01:45]} 32. g4 {[%clk 0:00:56]}  Rxb1 {[%clk 0:01:35]} 33. Rxb1 {[%clk 0:00:56]}  Bxg4 {[%clk 0:01:35]} 34. Rb7 {[%clk 0:00:56]}  Re8 {[%clk 0:01:24]} 35. Rxa7 {[%clk 0:00:56]}  Bf5 {[%clk 0:01:24]} 36. Rc7 {[%clk 0:00:46]}  Bxe4 {[%clk 0:01:22]} 37. dxe4 {[%clk 0:00:47]}  Ng6 {[%clk 0:01:22]} 38. Kg3 {[%clk 0:00:44]}  Rf8 {[%clk 0:01:20]} 39. Rxc5 {[%clk 0:00:41]}  Nxf4 {[%clk 0:01:20]} 40. Rc6 {[%clk 0:00:33]}  Bxe5 {[%clk 0:01:15]} 41. Kg4 {[%clk 0:00:31]}  Nd3 {[%clk 0:01:04]} 42. Bh4 {[%clk 0:00:26]}  Rf4+ {[%clk 0:00:57]} 43. Kh5 {[%clk 0:00:25]}  Rxe4 {[%clk 0:00:54]} 44. Be7 {[%clk 0:00:15]}  Kg7 {[%clk 0:00:51]} 45. c5 {[%clk 0:00:12]}  Nf4+ {[%clk 0:00:48]} 46. Kg4 {[%clk 0:00:12]}  Ng6+ {[%clk 0:00:47]} 47. Kf3 {[%clk 0:00:12]}  Rf4+ {[%clk 0:00:41]} 48. Ke2 {[%clk 0:00:13]}  Nxe7 {[%clk 0:00:41]} 49. Rxe6 {[%clk 0:00:12]}  Bf6 {[%clk 0:00:41]} 50. c6 {[%clk 0:00:11]}  Kf7 {[%clk 0:00:35]} 51. Rd6 {[%clk 0:00:10]}  Rf5 {[%clk 0:00:34]} 52. a4 {[%clk 0:00:06]}  Rc5 {[%clk 0:00:34]} 53. Kd3 {[%clk 0:00:07]}  Rxc6 {[%clk 0:00:33]} 54. Rd7 {[%clk 0:00:07]}  Ke6 {[%clk 0:00:33]} 55. Rd8 {[%clk 0:00:07]}  Nf5 {[%clk 0:00:26]} 56. Re8+ {[%clk 0:00:06]}  Kd5 {[%clk 0:00:26]} 57. Rf8 {[%clk 0:00:04]}  h5 {[%clk 0:00:21]} 58. a5 {[%clk 0:00:03]}  h4 {[%clk 0:00:20]} 59. Rf7 {[%clk 0:00:02]}  Ke6 {[%clk 0:00:16]} 60. Rh7 {[%clk 0:00:00]}  Ra6 {[%clk 0:00:15]} 0-1


[Site "https://www.chess.com"]

[Event "Titled Tuesday Blitz August 08 Early 2023"]
[White "Warchol, Kamil"]
[Black "Cagara, Paulina"]
[WhiteFideId "21858241"]
[BlackFideId "1124870"]
[WhiteElo "2439"]
[BlackElo "2273"]
[Result "1-0"]
[Round "8"]
[TimeControl "180+1"]
[Date "2023.08.08"]
[WhiteClock "0:00:16"]
[BlackClock "0:00:07"]
[Board "154"]

1. e4 {[%clk 0:03:00]}  c6 {[%clk 0:02:59]} 2. c4 {[%clk 0:02:56]}  d5 {[%clk 0:02:58]} 3. cxd5 {[%clk 0:02:57]}  cxd5 {[%clk 0:02:57]} 4. exd5 {[%clk 0:02:58]}  Nf6 {[%clk 0:02:56]} 5. Nc3 {[%clk 0:02:59]}  Nxd5 {[%clk 0:02:55]} 6. Nf3 {[%clk 0:03:00]}  Nc6 {[%clk 0:02:54]} 7. Bb5 {[%clk 0:02:57]}  Bg4 {[%clk 0:02:53]} 8. Qa4 {[%clk 0:02:31]}  Nf6 {[%clk 0:02:41]} 9. Bxc6+ {[%clk 0:02:29]}  bxc6 {[%clk 0:02:42]} 10. Qxc6+ {[%clk 0:02:29]}  Bd7 {[%clk 0:02:41]} 11. Qc4 {[%clk 0:02:23]}  Rc8 {[%clk 0:02:37]} 12. Qb3 {[%clk 0:02:20]}  g6 {[%clk 0:02:32]} 13. Ng5 {[%clk 0:02:11]}  e6 {[%clk 0:02:26]} 14. O-O {[%clk 0:02:11]}  Bg7 {[%clk 0:02:24]} 15. d4 {[%clk 0:02:09]}  O-O {[%clk 0:02:24]} 16. Rd1 {[%clk 0:02:09]}  Bc6 {[%clk 0:02:21]} 17. Bf4 {[%clk 0:01:48]}  Nd5 {[%clk 0:02:17]} 18. Nxd5 {[%clk 0:01:43]}  Bxd5 {[%clk 0:02:16]} 19. Qe3 {[%clk 0:01:39]}  Rc2 {[%clk 0:02:05]} 20. Rd2 {[%clk 0:01:25]}  Rc4 {[%clk 0:02:00]} 21. b3 {[%clk 0:01:17]}  Rc6 {[%clk 0:01:52]} 22. Ne4 {[%clk 0:01:13]}  Qh4 {[%clk 0:01:41]} 23. f3 {[%clk 0:01:04]}  Rfc8 {[%clk 0:01:39]} 24. Rad1 {[%clk 0:01:01]}  Bxe4 {[%clk 0:01:30]} 25. fxe4 {[%clk 0:00:53]}  Rc3 {[%clk 0:01:27]} 26. Rd3 {[%clk 0:00:47]}  Rc2 {[%clk 0:01:06]} 27. d5 {[%clk 0:00:37]}  exd5 {[%clk 0:01:03]} 28. exd5 {[%clk 0:00:38]}  Qg4 {[%clk 0:00:57]} 29. Bg3 {[%clk 0:00:32]}  h5 {[%clk 0:00:53]} 30. d6 {[%clk 0:00:31]}  h4 {[%clk 0:00:54]} 31. d7 {[%clk 0:00:28]}  Rd8 {[%clk 0:00:53]} 32. Qe8+ {[%clk 0:00:23]}  Kh7 {[%clk 0:00:53]} 33. Qxd8 {[%clk 0:00:23]}  hxg3 {[%clk 0:00:51]} 34. hxg3 {[%clk 0:00:24]}  g5 {[%clk 0:00:18]} 35. Qa8 {[%clk 0:00:20]}  Rxg2+ {[%clk 0:00:13]} 36. Qxg2 {[%clk 0:00:20]}  f5 {[%clk 0:00:11]} 37. d8=Q {[%clk 0:00:18]}  f4 {[%clk 0:00:07]} 38. gxf4 {[%clk 0:00:16]} 1-0


[Site "https://www.chess.com"]

[Event "Titled Tuesday Blitz August 08 Early 2023"]
[White "Psychonerd5"]
[Black "Novikov, Evgenij"]
[BlackFideId "4125380"]
[WhiteElo "2418"]
[BlackElo "2437"]
[Result "1-0"]
[Round "8"]
[TimeControl "180+1"]
[Date "2023.08.08"]
[WhiteClock "0:00:20"]
[BlackClock "0:00:10"]
[Board "155"]

1. c4 {[%clk 0:03:00]}  e5 {[%clk 0:02:58]} 2. g3 {[%clk 0:03:01]}  d5 {[%clk 0:02:54]} 3. cxd5 {[%clk 0:03:02]}  c6 {[%clk 0:02:54]} 4. dxc6 {[%clk 0:02:59]}  Nxc6 {[%clk 0:02:55]} 5. Bg2 {[%clk 0:03:00]}  Nf6 {[%clk 0:02:53]} 6. Nc3 {[%clk 0:02:59]}  Bc5 {[%clk 0:02:51]} 7. Nf3 {[%clk 0:02:58]}  O-O {[%clk 0:02:47]} 8. O-O {[%clk 0:02:58]}  Bg4 {[%clk 0:02:39]} 9. d3 {[%clk 0:02:57]}  Qd7 {[%clk 0:02:36]} 10. Bg5 {[%clk 0:02:53]}  Bh3 {[%clk 0:02:23]} 11. Bxf6 {[%clk 0:02:45]}  Bxg2 {[%clk 0:02:18]} 12. Kxg2 {[%clk 0:02:29]}  gxf6 {[%clk 0:02:17]} 13. Rc1 {[%clk 0:02:25]}  Rac8 {[%clk 0:02:11]} 14. Qd2 {[%clk 0:02:17]}  f5 {[%clk 0:02:04]} 15. Qg5+ {[%clk 0:02:09]}  Kh8 {[%clk 0:02:04]} 16. Qf6+ {[%clk 0:02:08]}  Kg8 {[%clk 0:02:04]} 17. Nxe5 {[%clk 0:01:55]}  Nxe5 {[%clk 0:02:00]} 18. Qxe5 {[%clk 0:01:56]}  Rfe8 {[%clk 0:01:59]} 19. Nd5 {[%clk 0:01:39]}  Rxe5 {[%clk 0:01:13]} 20. Nf6+ {[%clk 0:01:38]}  Kg7 {[%clk 0:01:13]} 21. Nxd7 {[%clk 0:01:39]}  Rd5 {[%clk 0:01:12]} 22. Nxc5 {[%clk 0:01:32]}  Rdxc5 {[%clk 0:01:13]} 23. Rxc5 {[%clk 0:01:28]}  Rxc5 {[%clk 0:01:14]} 24. Kf3 {[%clk 0:01:20]}  Rc2 {[%clk 0:01:13]} 25. Rb1 {[%clk 0:01:20]}  Kf6 {[%clk 0:01:13]} 26. a4 {[%clk 0:01:16]}  Ke5 {[%clk 0:01:09]} 27. Ke3 {[%clk 0:01:13]}  a6 {[%clk 0:01:02]} 28. b4 {[%clk 0:01:12]}  Ra2 {[%clk 0:01:00]} 29. a5 {[%clk 0:01:12]}  Ra4 {[%clk 0:00:52]} 30. Rb3 {[%clk 0:01:04]}  h6 {[%clk 0:00:50]} 31. h3 {[%clk 0:01:01]}  f6 {[%clk 0:00:42]} 32. f3 {[%clk 0:01:01]}  h5 {[%clk 0:00:37]} 33. h4 {[%clk 0:00:49]}  Ke6 {[%clk 0:00:30]} 34. Rb2 {[%clk 0:00:44]}  Ke5 {[%clk 0:00:29]} 35. Rb1 {[%clk 0:00:37]}  Ke6 {[%clk 0:00:28]} 36. Kf4 {[%clk 0:00:31]}  Ra2 {[%clk 0:00:27]} 37. e3 {[%clk 0:00:30]}  Ra3 {[%clk 0:00:26]} 38. d4 {[%clk 0:00:27]}  Ra4 {[%clk 0:00:26]} 39. e4 {[%clk 0:00:23]}  fxe4 {[%clk 0:00:26]} 40. fxe4 {[%clk 0:00:24]}  Ra2 {[%clk 0:00:25]} 41. d5+ {[%clk 0:00:23]}  Kf7 {[%clk 0:00:25]} 42. Rc1 {[%clk 0:00:21]}  Rf2+ {[%clk 0:00:22]} 43. Ke3 {[%clk 0:00:21]}  Rb2 {[%clk 0:00:23]} 44. Rc7+ {[%clk 0:00:21]}  Kg6 {[%clk 0:00:23]} 45. Rxb7 {[%clk 0:00:22]}  Rb3+ {[%clk 0:00:21]} 46. Kf4 {[%clk 0:00:22]}  Rb1 {[%clk 0:00:21]} 47. Rb6 {[%clk 0:00:22]}  Rf1+ {[%clk 0:00:20]} 48. Ke3 {[%clk 0:00:23]}  Rb1 {[%clk 0:00:20]} 49. d6 {[%clk 0:00:21]}  Kf7 {[%clk 0:00:20]} 50. Kd4 {[%clk 0:00:19]}  Ke6 {[%clk 0:00:20]} 51. d7+ {[%clk 0:00:19]}  Kxd7 {[%clk 0:00:19]} 52. Rxf6 {[%clk 0:00:19]}  Rxb4+ {[%clk 0:00:19]} 53. Ke3 {[%clk 0:00:20]}  Rb5 {[%clk 0:00:18]} 54. Rxa6 {[%clk 0:00:19]}  Kc7 {[%clk 0:00:15]} 55. Kf4 {[%clk 0:00:19]}  Kb7 {[%clk 0:00:14]} 56. Rb6+ {[%clk 0:00:19]}  Rxb6 {[%clk 0:00:10]} 57. axb6 {[%clk 0:00:20]} 1-0


[Site "https://www.chess.com"]

[Event "Titled Tuesday Blitz August 08 Early 2023"]
[White "Cheer_Down"]
[Black "LionKing2367890"]
[WhiteElo "2418"]
[BlackElo "2223"]
[Result "1-0"]
[Round "8"]
[TimeControl "180+1"]
[Date "2023.08.08"]
[WhiteClock "0:00:12"]
[BlackClock "0:00:01"]
[Board "157"]

1. e4 {[%clk 0:03:00]}  e5 {[%clk 0:02:59]} 2. Nf3 {[%clk 0:03:00]}  Nc6 {[%clk 0:02:59]} 3. Bc4 {[%clk 0:03:00]}  Bc5 {[%clk 0:02:59]} 4. c3 {[%clk 0:02:59]}  Nf6 {[%clk 0:02:59]} 5. d3 {[%clk 0:02:59]}  a6 {[%clk 0:02:59]} 6. a4 {[%clk 0:02:57]}  O-O {[%clk 0:02:56]} 7. O-O {[%clk 0:02:56]}  d6 {[%clk 0:02:55]} 8. h3 {[%clk 0:02:50]}  Be6 {[%clk 0:02:54]} 9. Bxe6 {[%clk 0:02:49]}  fxe6 {[%clk 0:02:53]} 10. b4 {[%clk 0:02:49]}  Ba7 {[%clk 0:02:53]} 11. Re1 {[%clk 0:02:49]}  Qe8 {[%clk 0:02:53]} 12. Be3 {[%clk 0:02:48]}  Bxe3 {[%clk 0:02:51]} 13. Rxe3 {[%clk 0:02:48]}  Qg6 {[%clk 0:02:50]} 14. Nbd2 {[%clk 0:02:45]}  Nh5 {[%clk 0:02:50]} 15. Kh2 {[%clk 0:02:38]}  Nf4 {[%clk 0:02:50]} 16. g3 {[%clk 0:02:37]}  Nh5 {[%clk 0:02:47]} 17. b5 {[%clk 0:02:35]}  Ne7 {[%clk 0:02:42]} 18. d4 {[%clk 0:02:33]}  exd4 {[%clk 0:02:40]} 19. cxd4 {[%clk 0:02:33]}  Nf6 {[%clk 0:02:31]} 20. Qb3 {[%clk 0:02:08]}  Qf7 {[%clk 0:02:14]} 21. Ng5 {[%clk 0:02:01]}  Ng4+ {[%clk 0:01:54]} 22. hxg4 {[%clk 0:02:01]}  Qxf2+ {[%clk 0:01:54]} 23. Kh3 {[%clk 0:01:45]}  Qxd2 {[%clk 0:01:53]} 24. Rd1 {[%clk 0:01:41]}  Qf2 {[%clk 0:01:50]} 25. Nxe6 {[%clk 0:01:33]}  Kh8 {[%clk 0:01:01]} 26. Nxf8 {[%clk 0:01:32]}  Rxf8 {[%clk 0:01:02]} 27. Ree1 {[%clk 0:01:30]}  Rf3 {[%clk 0:00:42]} 28. Qxf3 {[%clk 0:00:59]}  Qxf3 {[%clk 0:00:40]} 29. Rf1 {[%clk 0:00:59]}  Qb3 {[%clk 0:00:40]} 30. Rf8+ {[%clk 0:00:58]}  Ng8 {[%clk 0:00:40]} 31. Rc1 {[%clk 0:00:55]}  Qxa4 {[%clk 0:00:33]} 32. Rxc7 {[%clk 0:00:51]}  axb5 {[%clk 0:00:28]} 33. Rcc8 {[%clk 0:00:51]}  Qb3 {[%clk 0:00:24]} 34. d5 {[%clk 0:00:51]}  h6 {[%clk 0:00:17]} 35. g5 {[%clk 0:00:51]}  hxg5 {[%clk 0:00:14]} 36. Rxg8+ {[%clk 0:00:50]}  Kh7 {[%clk 0:00:14]} 37. Rce8 {[%clk 0:00:45]}  Qf3 {[%clk 0:00:14]} 38. Rh8+ {[%clk 0:00:42]}  Kg6 {[%clk 0:00:14]} 39. Re6+ {[%clk 0:00:41]}  Kf7 {[%clk 0:00:14]} 40. Rb8 {[%clk 0:00:39]}  g4+ {[%clk 0:00:07]} 41. Kh4 {[%clk 0:00:35]}  Qe2 {[%clk 0:00:07]} 42. Rxb7+ {[%clk 0:00:34]}  Kg8 {[%clk 0:00:07]} 43. Rg6 {[%clk 0:00:31]}  Qb2 {[%clk 0:00:04]} 44. Rxd6 {[%clk 0:00:22]}  Qe5 {[%clk 0:00:02]} 45. Re6 {[%clk 0:00:18]}  Qb2 {[%clk 0:00:01]} 46. e5 {[%clk 0:00:16]}  b4 {[%clk 0:00:02]} 47. Ree7 {[%clk 0:00:15]}  g6 {[%clk 0:00:01]} 48. Rg7+ {[%clk 0:00:14]}  Kh8 {[%clk 0:00:01]} 49. Rge7 {[%clk 0:00:13]}  Kg8 {[%clk 0:00:01]} 50. Re8# {[%clk 0:00:12]} 1-0


[Site "https://www.chess.com"]

[Event "Titled Tuesday Blitz August 08 Early 2023"]
[White "Lesbekova, Assel"]
[Black "Ljukin, Sergei"]
[WhiteFideId "13713248"]
[BlackFideId "14102200"]
[WhiteElo "2339"]
[BlackElo "2468"]
[Result "1/2-1/2"]
[Round "8"]
[TimeControl "180+1"]
[Date "2023.08.08"]
[WhiteClock "0:01:58"]
[BlackClock "0:00:14"]
[Board "162"]

1. e4 {[%clk 0:03:00]}  e6 {[%clk 0:02:23]} 2. d4 {[%clk 0:03:00]}  d5 {[%clk 0:02:24]} 3. Bd3 {[%clk 0:02:59]}  dxe4 {[%clk 0:02:23]} 4. Bxe4 {[%clk 0:03:00]}  Nf6 {[%clk 0:02:23]} 5. Bf3 {[%clk 0:03:00]}  Nbd7 {[%clk 0:02:24]} 6. Ne2 {[%clk 0:02:59]}  Bd6 {[%clk 0:02:25]} 7. Bf4 {[%clk 0:02:59]}  O-O {[%clk 0:02:22]} 8. Bxd6 {[%clk 0:02:59]}  cxd6 {[%clk 0:02:23]} 9. O-O {[%clk 0:03:00]}  e5 {[%clk 0:02:23]} 10. dxe5 {[%clk 0:02:59]}  dxe5 {[%clk 0:02:23]} 11. Nbc3 {[%clk 0:02:57]}  Qe7 {[%clk 0:02:23]} 12. Ng3 {[%clk 0:02:57]}  Nc5 {[%clk 0:02:22]} 13. Nge4 {[%clk 0:02:55]}  Ncxe4 {[%clk 0:02:21]} 14. Nxe4 {[%clk 0:02:56]}  Nxe4 {[%clk 0:02:22]} 15. Bxe4 {[%clk 0:02:57]}  Be6 {[%clk 0:02:22]} 16. Qe2 {[%clk 0:02:54]}  f5 {[%clk 0:02:19]} 17. Bd3 {[%clk 0:02:54]}  e4 {[%clk 0:02:18]} 18. Bc4 {[%clk 0:02:55]}  Rac8 {[%clk 0:02:18]} 19. Bxe6+ {[%clk 0:02:53]}  Qxe6 {[%clk 0:02:18]} 20. c3 {[%clk 0:02:54]}  f4 {[%clk 0:02:18]} 21. Rfe1 {[%clk 0:02:46]}  Rce8 {[%clk 0:02:15]} 22. Qb5 {[%clk 0:02:46]}  Qg4 {[%clk 0:01:39]} 23. Qd5+ {[%clk 0:02:40]}  Kh8 {[%clk 0:01:37]} 24. Rxe4 {[%clk 0:02:31]}  Rxe4 {[%clk 0:01:35]} 25. Qxe4 {[%clk 0:02:32]}  h6 {[%clk 0:01:35]} 26. Re1 {[%clk 0:02:28]}  Qh5 {[%clk 0:01:22]} 27. f3 {[%clk 0:02:27]}  Qb5 {[%clk 0:01:17]} 28. Qb4 {[%clk 0:02:23]}  Qxb4 {[%clk 0:01:13]} 29. cxb4 {[%clk 0:02:24]}  Rf7 {[%clk 0:01:13]} 30. Kf2 {[%clk 0:02:23]}  g5 {[%clk 0:01:13]} 31. Re2 {[%clk 0:02:22]}  Kg7 {[%clk 0:01:13]} 32. Rd2 {[%clk 0:02:23]}  Rc7 {[%clk 0:01:13]} 33. Ke2 {[%clk 0:02:21]}  Kf7 {[%clk 0:01:13]} 34. Kd1 {[%clk 0:02:21]}  Ke7 {[%clk 0:01:12]} 35. b3 {[%clk 0:02:20]}  Rc6 {[%clk 0:01:11]} 36. Rd5 {[%clk 0:02:19]}  Re6 {[%clk 0:01:06]} 37. Kd2 {[%clk 0:02:19]}  Ra6 {[%clk 0:00:51]} 38. a4 {[%clk 0:02:19]}  Re6 {[%clk 0:00:51]} 39. Kd3 {[%clk 0:02:18]}  Re3+ {[%clk 0:00:50]} 40. Kc2 {[%clk 0:02:17]}  Ke6 {[%clk 0:00:45]} 41. Rd2 {[%clk 0:02:17]}  Ke5 {[%clk 0:00:44]} 42. b5 {[%clk 0:02:14]}  b6 {[%clk 0:00:41]} 43. a5 {[%clk 0:02:10]}  bxa5 {[%clk 0:00:40]} 44. Rd7 {[%clk 0:02:11]}  Re2+ {[%clk 0:00:39]} 45. Kc3 {[%clk 0:02:10]}  Rxg2 {[%clk 0:00:38]} 46. Rxa7 {[%clk 0:02:11]}  Kd6 {[%clk 0:00:35]} 47. Ra6+ {[%clk 0:02:09]}  Kc5 {[%clk 0:00:32]} 48. Rxh6 {[%clk 0:02:06]}  Kxb5 {[%clk 0:00:32]} 49. h4 {[%clk 0:02:05]}  g4 {[%clk 0:00:25]} 50. fxg4 {[%clk 0:02:05]}  Rxg4 {[%clk 0:00:25]} 51. h5 {[%clk 0:02:06]}  Rg3+ {[%clk 0:00:22]} 52. Kc2 {[%clk 0:02:05]}  Rh3 {[%clk 0:00:17]} 53. Rf6 {[%clk 0:02:03]}  Rxh5 {[%clk 0:00:16]} 54. Rxf4 {[%clk 0:02:03]}  Rg5 {[%clk 0:00:15]} 55. Ra4 {[%clk 0:02:01]}  Rh5 {[%clk 0:00:15]} 56. Rc4 {[%clk 0:02:01]}  Rg5 {[%clk 0:00:15]} 57. Ra4 {[%clk 0:02:01]}  Rh5 {[%clk 0:00:15]} 58. Rg4 {[%clk 0:02:01]}  Rf5 {[%clk 0:00:15]} 59. Kc3 {[%clk 0:02:01]}  Rh5 {[%clk 0:00:15]} 60. Kb2 {[%clk 0:02:01]}  Rf5 {[%clk 0:00:15]} 61. Ka3 {[%clk 0:02:01]}  Rh5 {[%clk 0:00:16]} 62. Kb2 {[%clk 0:02:01]}  Rf5 {[%clk 0:00:14]} 63. Ka3 {[%clk 0:01:58]} 1/2-1/2


[Site "https://www.chess.com"]

[Event "Titled Tuesday Blitz August 08 Early 2023"]
[White "Nguyen Hong Nhung"]
[Black "Pavlidou, Ekaterini"]
[WhiteFideId "12412201"]
[BlackFideId "4213262"]
[WhiteElo "2449"]
[BlackElo "2325"]
[Result "1-0"]
[Round "8"]
[TimeControl "180+1"]
[Date "2023.08.08"]
[WhiteClock "0:01:48"]
[BlackClock "0:01:03"]
[Board "163"]

1. e4 {[%clk 0:03:00]}  c5 {[%clk 0:03:00]} 2. Nc3 {[%clk 0:03:00]}  Nc6 {[%clk 0:03:00]} 3. f4 {[%clk 0:03:00]}  g6 {[%clk 0:03:00]} 4. Nf3 {[%clk 0:03:00]}  Bg7 {[%clk 0:02:59]} 5. Bc4 {[%clk 0:03:01]}  d6 {[%clk 0:02:59]} 6. O-O {[%clk 0:03:02]}  e6 {[%clk 0:02:59]} 7. d3 {[%clk 0:03:02]}  Nge7 {[%clk 0:02:59]} 8. Qe1 {[%clk 0:03:03]}  a6 {[%clk 0:02:59]} 9. a4 {[%clk 0:03:03]}  b6 {[%clk 0:02:58]} 10. Qh4 {[%clk 0:03:01]}  h6 {[%clk 0:02:57]} 11. Bd2 {[%clk 0:02:57]}  Bb7 {[%clk 0:02:55]} 12. Rae1 {[%clk 0:02:56]}  Nd4 {[%clk 0:02:55]} 13. Nxd4 {[%clk 0:02:48]}  Bxd4+ {[%clk 0:02:54]} 14. Kh1 {[%clk 0:02:48]}  Nc6 {[%clk 0:02:54]} 15. Qg3 {[%clk 0:02:46]}  h5 {[%clk 0:02:51]} 16. f5 {[%clk 0:02:44]}  gxf5 {[%clk 0:02:46]} 17. exf5 {[%clk 0:02:41]}  h4 {[%clk 0:02:39]} 18. Qh3 {[%clk 0:02:22]}  e5 {[%clk 0:02:31]} 19. Nd5 {[%clk 0:02:21]}  Na5 {[%clk 0:02:24]} 20. Bxa5 {[%clk 0:02:18]}  bxa5 {[%clk 0:02:22]} 21. c3 {[%clk 0:02:18]}  Bxd5 {[%clk 0:01:51]} 22. Bxd5 {[%clk 0:02:19]}  Rb8 {[%clk 0:01:51]} 23. cxd4 {[%clk 0:02:18]}  cxd4 {[%clk 0:01:51]} 24. b3 {[%clk 0:02:16]}  Qg5 {[%clk 0:01:49]} 25. f6 {[%clk 0:02:12]}  Rg8 {[%clk 0:01:40]} 26. Rc1 {[%clk 0:02:02]}  Kd8 {[%clk 0:01:36]} 27. Rc6 {[%clk 0:01:59]}  Qg4 {[%clk 0:01:27]} 28. Rxd6+ {[%clk 0:01:56]}  Kc7 {[%clk 0:01:25]} 29. Rc6+ {[%clk 0:01:56]}  Kd7 {[%clk 0:01:25]} 30. Qxg4+ {[%clk 0:01:55]}  Rxg4 {[%clk 0:01:24]} 31. Rfc1 {[%clk 0:01:55]}  Rf4 {[%clk 0:01:10]} 32. Bxf7 {[%clk 0:01:49]}  Rf8 {[%clk 0:01:03]} 33. Be6+ {[%clk 0:01:48]} 1-0


[Site "https://www.chess.com"]